[Event "30e Open International de Saint Affrique"]
[Site "Saint Affrique, France"]
[Date "2024.07.22"]
[Round "3.3"]
[White "Bruneau, Laurent"]
[Black "Martinez, Felicien"]
[Result "0-1"]
[TimeControl "1h30/40 + 30min + sec/mv"]
[WhiteTitle "FM"]
[WhiteElo "2179"]
[BlackElo "1995"]

1. e4 {[%clk 01:29:02]} {[%emt 00:01:57]} d6 {[%clk 01:29:38]} {[%emt
00:01:22]} 2. d4 {[%clk 01:29:24]} {[%emt 00:00:08]} Nf6 {[%clk 01:29:58]}
{[%emt 00:00:10]} 3. Nc3 {[%clk 01:29:50]} {[%emt 00:00:04]} g6 {[%clk
01:29:51]} {[%emt 00:00:36]} 4. Nf3 {[%clk 01:28:27]} {[%emt 00:01:54]} Bg7
{[%clk 01:29:34]} {[%emt 00:00:46]} 5. Be2 {[%clk 01:28:20]} {[%emt 00:00:38]}
O-O {[%clk 01:28:16]} {[%emt 00:01:48]} 6. O-O {[%clk 01:27:17]} {[%emt
00:01:33]} c6 {[%clk 01:27:05]} {[%emt 00:01:41]} 7. a4 {[%clk 01:24:30]}
{[%emt 00:03:17]} d5 {[%clk 01:19:51]} {[%emt 00:07:44]} 8. e5 {[%clk
01:13:05]} {[%emt 00:11:56]} Ne8 {[%clk 01:19:10]} {[%emt 00:01:10]} 9. h3
{[%clk 01:12:59]} {[%emt 00:00:36]} f6 {[%clk 01:11:44]} {[%emt 00:07:56]} 10.
Bf4 {[%clk 00:55:34]} {[%emt 00:17:54]} Nd7 {[%clk 01:07:36]} {[%emt 00:04:38]}
11. exf6 {[%clk 00:50:13]} {[%emt 00:27:42]} Ndxf6 {[%clk 01:06:44]} 12. Bh2
{[%clk 00:50:34]} Nd6 {[%clk 01:00:11]} 13. Bd3 {[%clk 00:50:02]} Nh5 {[%clk
00:54:43]} 14. Re1 {[%clk 00:47:29]} Nf4 {[%clk 00:49:10]} {[%emt 00:02:49]} 15.
Bf1 {[%clk 00:45:59]} {[%emt 00:02:01]} Bh6 {[%clk 00:49:11]} {[%emt 00:00:30]}
16. Ne5 {[%clk 00:45:27]} {[%emt 00:01:01]} Qb6 {[%clk 00:34:10]} {[%emt
00:15:30]} 17. a5 {[%clk 00:38:37]} {[%emt 00:07:21]} Qxb2 {[%clk 00:27:30]}
{[%emt 00:07:09]} 18. Na4 {[%clk 00:38:59]} {[%emt 00:00:08]} Qb4 {[%clk
00:27:11]} {[%emt 00:00:50]} 19. Nc5 {[%clk 00:39:00]} {[%emt 00:00:28]} Nb5
{[%clk 00:23:12]} {[%emt 00:04:29]} 20. Ra4 {[%clk 00:30:52]} {[%emt 00:08:38]}
Qc3 {[%clk 00:21:35]} {[%emt 00:02:07]} 21. Re3 {[%clk 00:23:37]} {[%emt
00:07:46]} Nxh3+ {[%clk 00:21:46]} {[%emt 00:00:19]} 22. Rxh3 {[%clk 00:23:31]}
{[%emt 00:00:36]} Bxh3 {[%clk 00:22:10]} {[%emt 00:00:06]} 23. gxh3 {[%clk
00:23:54]} {[%emt 00:00:07]} Bf4 {[%clk 00:18:33]} {[%emt 00:04:07]} 24. Bxf4
{[%clk 00:24:09]} {[%emt 00:00:14]} Rxf4 {[%clk 00:18:51]} {[%emt 00:00:11]} 25.
Nb3 {[%clk 00:20:45]} {[%emt 00:03:55]} Raf8 {[%clk 00:17:48]} {[%emt
00:01:33]} 26. Nd3 {[%clk 00:17:33]} {[%emt 00:03:41]} Rxf2 {[%clk 00:17:17]}
{[%emt 00:01:01]} 27. Be2 {[%clk 00:15:16]} {[%emt 00:02:47]} R2f6 {[%clk
00:14:44]} {[%emt 00:03:03]} 28. Rb4 {[%clk 00:10:48]} {[%emt 00:04:59]} b6
{[%clk 00:13:38]} {[%emt 00:01:35]} 29. axb6 {[%clk 00:10:58]} {[%emt
00:00:20]} axb6 {[%clk 00:13:58]} {[%emt 00:00:10]} 30. Qd2 {[%clk 00:11:07]}
{[%emt 00:00:20]} Kg7 {[%clk 00:11:38]} {[%emt 00:02:50]} 31. Qxc3 {[%clk
00:07:00]} {[%emt 00:04:37]} Nxc3 {[%clk 00:12:02]} {[%emt 00:00:06]} 32. Nbc1
{[%clk 00:07:22]} {[%emt 00:00:07]} Re6 {[%clk 00:09:28]} {[%emt 00:03:04]} 33.
Bf1 {[%clk 00:07:25]} {[%emt 00:00:27]} c5 {[%clk 00:09:32]} {[%emt 00:00:26]}
34. dxc5 {[%clk 00:06:44]} {[%emt 00:01:11]} bxc5 {[%clk 00:09:53]} {[%emt
00:00:10]} 35. Rf4 {[%clk 00:06:28]} {[%emt 00:00:46]} Rxf4 {[%clk 00:07:57]}
{[%emt 00:02:26]} 36. Nxf4 {[%clk 00:06:53]} {[%emt 00:00:04]} Rf6 {[%clk
00:07:16]} {[%emt 00:01:10]} 37. Ng2 {[%clk 00:04:31]} {[%emt 00:02:52]} c4
{[%clk 00:05:28]} {[%emt 00:02:19]} 38. Ne2 {[%clk 00:04:09]} {[%emt 00:00:52]}
Nxe2+ {[%clk 00:04:01]} {[%emt 00:01:56]} 39. Bxe2 {[%clk 00:04:34]} {[%emt
00:00:06]} Ra6 {[%clk 00:03:02]} {[%emt 00:01:29]} 40. Kf2 {[%clk 00:03:58]}
{[%emt 00:01:06]} e6 {[%clk 00:01:47]} {[%emt 00:01:45]} 41. h4 {[%clk
00:01:39]} {[%emt 00:02:50]} Kf6 {[%clk 00:29:45]} {[%emt 00:02:31]} 42. Ne3
{[%clk 00:26:58]} {[%emt 00:05:11]} h5 {[%clk 00:28:47]} {[%emt 00:01:28]} 43.
Ng2 {[%clk 00:25:25]} {[%emt 00:02:04]} Ra3 {[%clk 00:28:42]} {[%emt 00:00:35]}
44. Ne1 {[%clk 00:25:32]} {[%emt 00:00:22]} Ra2 {[%clk 00:25:56]} {[%emt
00:03:16]} 45. Ke3 {[%clk 00:23:52]} {[%emt 00:02:10]} e5 {[%clk 00:25:34]}
{[%emt 00:00:52]} 46. Bf3 {[%clk 00:17:34]} {[%emt 00:06:47]} e4 {[%clk
00:25:18]} {[%emt 00:00:47]} 47. Be2 {[%clk 00:16:44]} {[%emt 00:01:21]} Ke5
{[%clk 00:25:37]} {[%emt 00:00:11]} 48. c3 {[%clk 00:16:38]} {[%emt 00:00:37]}
Ra3 {[%clk 00:24:16]} {[%emt 00:01:51]} 49. Kd2 {[%clk 00:16:44]} {[%emt
00:00:23]} e3+ {[%clk 00:23:47]} {[%emt 00:00:59]} 50. Kxe3 {[%clk 00:16:20]}
{[%emt 00:00:54]} Rxc3+ {[%clk 00:23:59]} {[%emt 00:00:17]} 51. Kf2 {[%clk
00:15:43]} {[%emt 00:01:07]} Ra3 {[%clk 00:23:42]} {[%emt 00:00:47]} 52. Nf3+
{[%clk 00:12:48]} {[%emt 00:03:26]} Kf4 {[%clk 00:22:34]} {[%emt 00:01:37]} 53.
Nd4 {[%clk 00:12:37]} {[%emt 00:00:42]} Ra2 {[%clk 00:22:02]} {[%emt 00:01:01]}
54. Ne6+ {[%clk 00:08:19]} {[%emt 00:04:48]} Kf5 {[%clk 00:17:39]} {[%emt
00:04:52]} 55. Nc7 {[%clk 00:06:07]} {[%emt 00:02:42]} d4 {[%clk 00:16:16]}
{[%emt 00:01:54]} 56. Kf3 {[%clk 00:06:17]} {[%emt 00:00:20]} d3 {[%clk
00:15:38]} {[%emt 00:01:08]} 57. Bf1 {[%clk 00:05:57]} {[%emt 00:00:51]} Ra1
{[%clk 00:15:55]} {[%emt 00:00:13]} 58. Bh3+ {[%clk 00:05:11]} {[%emt
00:01:16]} Ke5 {[%clk 00:16:16]} {[%emt 00:00:09]} 59. Ke3 {[%clk 00:05:06]}
{[%emt 00:00:36]} Re1+ {[%clk 00:15:52]} {[%emt 00:00:53]} 60. Kd2 {[%clk
00:05:14]} {[%emt 00:00:22]} Re2+ {[%clk 00:16:13]} {[%emt 00:00:09]} 0-1

[Event "30e Open International de Saint Affrique"]
[Site "Saint Affrique, France"]
[Date "2024.07.22"]
[Round "3.4"]
[White "Sauret, Jordan"]
[Black "El Mchaouri Mas, Younes"]
[Result "1/2-1/2"]
[TimeControl "1h30/40 + 30min + sec/mv"]
[WhiteElo "1992"]
[BlackElo "2143"]

1. d4 {[%clk 01:29:08]} {[%emt 00:01:51]} Nf6 {[%clk 01:30:56]} {[%emt
00:00:05]} 2. c4 {[%clk 01:29:32]} {[%emt 00:00:06]} e6 {[%clk 01:31:21]}
{[%emt 00:00:05]} 3. Nc3 {[%clk 01:29:47]} {[%emt 00:00:15]} Bb4 {[%clk
01:30:58]} {[%emt 00:00:53]} 4. f3 {[%clk 01:29:40]} {[%emt 00:00:37]} d5
{[%clk 01:24:31]} {[%emt 00:06:58]} 5. a3 {[%clk 01:30:02]} {[%emt 00:00:08]}
Bxc3+ {[%clk 01:23:12]} {[%emt 00:01:48]} 6. bxc3 {[%clk 01:30:30]} {[%emt
00:00:02]} c5 {[%clk 01:23:28]} {[%emt 00:00:14]} 7. cxd5 {[%clk 01:30:18]}
{[%emt 00:00:41]} exd5 {[%clk 01:19:25]} {[%emt 00:04:33]} 8. e3 {[%clk
01:28:34]} {[%emt 00:02:14]} O-O {[%clk 01:14:56]} {[%emt 00:04:59]} 9. Bd3
{[%clk 01:28:54]} {[%emt 00:00:10]} b6 {[%clk 01:15:06]} {[%emt 00:00:20]} 10.
Ne2 {[%clk 01:29:19]} {[%emt 00:00:05]} Ba6 {[%clk 01:13:13]} {[%emt 00:02:24]}
11. Ng3 {[%clk 01:29:31]} {[%emt 00:00:17]} Qc7 {[%clk 01:02:11]} {[%emt
00:11:33]} 12. Qd2 {[%clk 01:20:27]} {[%emt 00:09:34]} Rd8 {[%clk 00:49:27]}
{[%emt 00:13:14]} 13. O-O {[%clk 01:12:21]} {[%emt 00:08:35]} Qb7 {[%clk
00:40:22]} {[%emt 00:24:17]} 14. e4 {[%clk 01:05:24]} Bxd3 {[%clk 00:25:41]}
{[%emt 00:07:57]} 15. Qxd3 {[%clk 01:05:30]} {[%emt 00:00:24]} Qa6 {[%clk
00:12:36]} {[%emt 00:13:36]} 16. Qe3 {[%clk 01:04:10]} {[%emt 00:01:49]} Nc6
{[%clk 00:10:43]} {[%emt 00:02:23]} 17. e5 {[%clk 00:55:16]} {[%emt 00:09:24]}
Ne8 {[%clk 00:11:12]} {[%emt 00:00:01]} 18. e6 {[%clk 00:44:13]} {[%emt
00:11:32]} Nd6 {[%clk 00:03:54]} {[%emt 00:07:49]} 19. dxc5 {[%clk 00:34:43]}
{[%emt 00:10:00]} bxc5 {[%clk 00:03:41]} {[%emt 00:00:43]} 20. exf7+ {[%clk
00:35:06]} {[%emt 00:00:07]} Nxf7 {[%clk 00:03:46]} {[%emt 00:00:26]} 21. Qxc5
{[%clk 00:35:00]} {[%emt 00:00:36]} Rac8 {[%clk 00:02:14]} {[%emt 00:02:02]} 22.
Nf5 {[%clk 00:32:08]} {[%emt 00:03:21]} g6 {[%clk 00:00:41]} {[%emt 00:02:04]}
23. Nh6+ {[%clk 00:31:34]} {[%emt 00:01:04]} Nxh6 {[%clk 00:01:05]} {[%emt
00:00:06]} 24. Bxh6 {[%clk 00:31:53]} {[%emt 00:00:10]} Qa5 {[%clk 00:00:40]}
{[%emt 00:00:55]} 25. Be3 {[%clk 00:28:07]} {[%emt 00:04:15]} Qxc5 {[%clk
00:00:33]} {[%emt 00:00:37]} 26. Bxc5 {[%clk 00:28:29]} {[%emt 00:00:08]} a6
{[%clk 00:00:36]} {[%emt 00:00:27]} 27. Rab1 {[%clk 00:27:39]} {[%emt
00:01:20]} Rb8 {[%clk 00:00:52]} {[%emt 00:00:14]} 28. Rfe1 {[%clk 00:27:06]}
{[%emt 00:01:02]} Kf7 {[%clk 00:01:18]} {[%emt 00:00:05]} 29. Kf2 {[%clk
00:24:45]} {[%emt 00:02:51]} Rdc8 {[%clk 00:00:57]} {[%emt 00:00:51]} 30. Bd6
{[%clk 00:23:23]} {[%emt 00:01:51]} Rxb1 {[%clk 00:00:52]} {[%emt 00:00:36]} 31.
Rxb1 {[%clk 00:23:43]} {[%emt 00:00:10]} Ke6 {[%clk 00:00:39]} {[%emt
00:00:43]} 32. Bc5 {[%clk 00:23:09]} {[%emt 00:01:03]} Ne5 {[%clk 00:00:34]}
{[%emt 00:00:36]} 33. Bd4 {[%clk 00:22:26]} {[%emt 00:01:12]} Nc4 {[%clk
00:00:44]} {[%emt 00:00:20]} 34. Rb7 {[%clk 00:22:20]} {[%emt 00:00:36]} Nxa3
{[%clk 00:00:34]} {[%emt 00:00:42]} 35. Rb6+ {[%clk 00:22:36]} {[%emt
00:00:13]} Kd7 {[%clk 00:00:46]} {[%emt 00:00:18]} 36. Rxa6 {[%clk 00:22:28]}
{[%emt 00:00:37]} Nb5 {[%clk 00:00:55]} {[%emt 00:00:22]} 37. Ra5 {[%clk
00:21:22]} {[%emt 00:01:36]} Nxc3 {[%clk 00:00:34]} {[%emt 00:00:51]} 38. Bxc3
{[%clk 00:21:42]} {[%emt 00:00:10]} Rxc3 {[%clk 00:01:03]} {[%emt 00:00:02]} 39.
Rxd5+ {[%clk 00:22:05]} {[%emt 00:00:07]} Ke6 {[%clk 00:01:22]} {[%emt
00:00:11]} 40. Ra5 {[%clk 00:22:19]} {[%emt 00:00:16]} Rc7 {[%clk 00:01:25]}
{[%emt 00:00:28]} 41. g4 {[%clk 00:22:07]} {[%emt 00:00:42]} Kf6 {[%clk
00:01:20]} {[%emt 00:00:35]} 42. h4 {[%clk 00:19:56]} {[%emt 00:02:40]} h6
{[%clk 00:26:39]} {[%emt 00:05:11]} 43. h5 {[%clk 00:48:27]} {[%emt 00:02:00]}
g5 {[%clk 00:15:29]} {[%emt 00:11:39]} 44. Ra6+ {[%clk 00:47:53]} {[%emt
00:01:04]} Kg7 {[%clk 00:15:54]} {[%emt 00:00:06]} 45. Re6 {[%clk 00:46:16]}
{[%emt 00:02:07]} Rc3 {[%clk 00:15:28]} {[%emt 00:00:56]} 46. Rg6+ {[%clk
00:44:17]} {[%emt 00:02:28]} Kh7 {[%clk 00:15:56]} {[%emt 00:00:03]} 47. Ke2
{[%clk 00:44:37]} {[%emt 00:00:10]} Ra3 {[%clk 00:14:03]} {[%emt 00:02:23]} 48.
Rd6 {[%clk 00:44:59]} {[%emt 00:00:08]} Rb3 {[%clk 00:10:57]} {[%emt 00:03:36]}
49. Rd3 {[%clk 00:43:09]} {[%emt 00:02:20]} Rb1 {[%clk 00:07:02]} {[%emt
00:04:26]} 50. Ke3 {[%clk 00:41:24]} {[%emt 00:02:14]} Re1+ {[%clk 00:05:37]}
{[%emt 00:01:54]} 51. Kd4 {[%clk 00:41:36]} {[%emt 00:00:18]} Kg7 {[%clk
00:02:42]} {[%emt 00:03:25]} 52. Re3 {[%clk 00:37:39]} {[%emt 00:04:28]} Rd1+
{[%clk 00:02:20]} {[%emt 00:00:52]} 53. Ke4 {[%clk 00:37:17]} {[%emt 00:00:51]}
Kf6 {[%clk 00:00:45]} {[%emt 00:02:05]} 54. Ra3 {[%clk 00:35:47]} {[%emt
00:02:00]} Re1+ {[%clk 00:00:56]} {[%emt 00:00:19]} 55. Kd3 {[%clk 00:36:11]}
{[%emt 00:00:06]} Rd1+ {[%clk 00:00:48]} {[%emt 00:00:38]} 56. Ke2 {[%clk
00:36:22]} {[%emt 00:00:19]} Rd6 {[%clk 00:00:45]} {[%emt 00:00:32]} 57. Ra7
{[%clk 00:36:35]} {[%emt 00:00:18]} Re6+ {[%clk 00:00:34]} {[%emt 00:00:42]} 58.
Kd3 {[%clk 00:35:30]} {[%emt 00:01:34]} Ke5 {[%clk 00:00:35]} {[%emt 00:00:29]}
59. Ra5+ {[%clk 00:35:25]} {[%emt 00:00:34]} Kf4 {[%clk 00:00:33]} {[%emt
00:00:33]} 60. Rf5+ {[%clk 00:35:16]} {[%emt 00:00:39]} Kg3 {[%clk 00:01:02]}
61. Kd4 {[%clk 00:35:21]} {[%emt 00:00:25]} Ra6 {[%clk 00:00:33]} {[%emt
00:00:59]} 62. Ke5 {[%clk 00:34:12]} {[%emt 00:01:38]} Ra3 {[%clk 00:00:48]}
{[%emt 00:00:16]} 63. Kf6 {[%clk 00:33:57]} {[%emt 00:00:45]} Rxf3 {[%clk
00:00:43]} {[%emt 00:00:35]} 64. Kg6 {[%clk 00:34:12]} {[%emt 00:00:14]} Ra3
{[%clk 00:01:01]} {[%emt 00:00:13]} 65. Kxh6 {[%clk 00:34:07]} {[%emt
00:00:35]} Kxg4 {[%clk 00:01:05]} {[%emt 00:00:26]} 66. Rf6 {[%clk 00:29:59]}
{[%emt 00:04:38]} Rh3 {[%clk 00:01:06]} {[%emt 00:00:28]} 67. Ra6 {[%clk
00:29:21]} {[%emt 00:01:08]} Rxh5+ {[%clk 00:01:06]} {[%emt 00:00:30]} 68. Kg6
{[%clk 00:29:31]} {[%emt 00:00:20]} Rh8 {[%clk 00:00:39]} {[%emt 00:00:57]} 69.
Ra4+ {[%clk 00:29:43]} {[%emt 00:00:18]} Kf3 {[%clk 00:01:02]} {[%emt
00:00:07]} 70. Kxg5 {[%clk 00:29:19]} {[%emt 00:00:54]} Ke4 {[%clk 00:00:00]}
{[%emt 00:00:48]} 1/2-1/2

[Event "30e Open International de Saint Affrique"]
[Site "Saint Affrique, France"]
[Date "2024.07.22"]
[Round "3.5"]
[White "Ciarletta, Ulysse"]
[Black "Genkeswaran, Genivan"]
[Result "1-0"]
[TimeControl "1h30/40 + 30min + sec/mv"]
[WhiteElo "2139"]
[BlackElo "1994"]

1. d4 {[%clk 01:30:57]} {[%emt 00:00:02]} d5 {[%clk 01:27:31]} {[%emt
00:03:30]} 2. c4 {[%clk 01:30:58]} {[%emt 00:00:29]} c6 {[%clk 01:27:31]}
{[%emt 00:00:31]} 3. Nf3 {[%clk 01:31:05]} {[%emt 00:00:22]} Nf6 {[%clk
01:27:40]} {[%emt 00:00:21]} 4. Nc3 {[%clk 01:31:12]} {[%emt 00:00:24]} e6
{[%clk 01:28:01]} {[%emt 00:00:09]} 5. g3 {[%clk 01:31:34]} {[%emt 00:00:07]}
dxc4 {[%clk 01:27:50]} {[%emt 00:00:42]} 6. Bg2 {[%clk 01:31:37]} {[%emt
00:00:26]} b5 {[%clk 01:28:00]} {[%emt 00:00:20]} 7. Ne5 {[%clk 01:30:56]}
{[%emt 00:01:12]} a6 {[%clk 01:27:49]} {[%emt 00:00:42]} 8. a4 {[%clk
01:26:24]} {[%emt 00:05:01]} Bb7 {[%clk 01:27:44]} {[%emt 00:00:35]} 9. O-O
{[%clk 01:26:42]} {[%emt 00:00:12]} Nd5 {[%clk 01:24:36]} {[%emt 00:03:38]} 10.
Ne4 {[%clk 01:25:21]} {[%emt 00:01:51]} f6 {[%clk 01:20:03]} {[%emt 00:05:02]}
11. Nf3 {[%clk 01:25:21]} {[%emt 00:00:30]} Nd7 {[%clk 01:13:01]} {[%emt
00:07:32]} 12. h4 {[%clk 01:21:12]} {[%emt 00:04:39]} Bb4 {[%clk 01:09:22]}
{[%emt 00:04:09]} 13. g4 {[%clk 01:20:06]} {[%emt 00:01:36]} O-O {[%clk
01:08:46]} {[%emt 00:01:06]} 14. Ng3 {[%clk 01:16:30]} {[%emt 00:04:06]} Qc7
{[%clk 01:04:56]} {[%emt 00:04:20]} 15. Qc2 {[%clk 01:08:49]} {[%emt 00:08:10]}
Rae8 {[%clk 00:57:39]} {[%emt 00:07:48]} 16. g5 {[%clk 01:07:08]} {[%emt
00:02:12]} f5 {[%clk 00:52:30]} {[%emt 00:24:14]} 17. e3 {[%clk 00:49:01]}
{[%emt 00:00:02]} c5 {[%clk 00:35:34]} {[%emt 00:17:26]} 18. axb5 {[%clk
00:48:27]} {[%emt 00:01:04]} axb5 {[%clk 00:35:49]} {[%emt 00:00:15]} 19. h5
{[%clk 00:42:41]} {[%emt 00:06:16]} f4 {[%clk 00:29:32]} {[%emt 00:06:48]} 20.
Ne2 {[%clk 00:41:48]} {[%emt 00:01:22]} cxd4 {[%clk 00:27:11]} {[%emt
00:02:51]} 21. Nfxd4 {[%clk 00:38:01]} {[%emt 00:04:17]} e5 {[%clk 00:24:02]}
{[%emt 00:03:39]} 22. Nf5 {[%clk 00:30:38]} {[%emt 00:07:54]} e4 {[%clk
00:22:19]} {[%emt 00:02:13]} 23. Ned4 {[%clk 00:29:41]} {[%emt 00:01:26]} f3
{[%clk 00:21:36]} {[%emt 00:01:13]} 24. Bh3 {[%clk 00:29:59]} {[%emt 00:00:12]}
Qd8 {[%clk 00:18:51]} {[%emt 00:03:15]} 25. Kh2 {[%clk 00:25:55]} {[%emt
00:04:34]} Nc5 {[%clk 00:16:08]} {[%emt 00:03:13]} 26. h6 {[%clk 00:21:20]}
{[%emt 00:05:04]} g6 {[%clk 00:15:21]} {[%emt 00:01:18]} 27. Ng7 {[%clk
00:21:32]} {[%emt 00:00:18]} Qxg5 {[%clk 00:10:12]} {[%emt 00:05:39]} 28. Rg1
{[%clk 00:19:46]} {[%emt 00:02:16]} Qe5+ {[%clk 00:09:00]} {[%emt 00:01:42]} 29.
Rg3 {[%clk 00:19:56]} {[%emt 00:00:20]} Re7 {[%clk 00:08:10]} {[%emt 00:01:19]}
30. Nxb5 {[%clk 00:19:12]} {[%emt 00:01:15]} Nf6 {[%clk 00:06:13]} {[%emt
00:02:27]} 31. Qxc4+ {[%clk 00:19:20]} {[%emt 00:00:23]} Bd5 {[%clk 00:06:03]}
{[%emt 00:00:40]} 32. Qxb4 {[%clk 00:19:41]} {[%emt 00:00:08]} Nd3 {[%clk
00:04:50]} {[%emt 00:01:43]} 33. Qd2 {[%clk 00:17:32]} {[%emt 00:02:39]} Bc6
{[%clk 00:03:08]} {[%emt 00:02:12]} 34. Nd4 {[%clk 00:16:37]} {[%emt 00:01:26]}
Bd7 {[%clk 00:03:10]} {[%emt 00:00:29]} 35. Ra5 {[%clk 00:13:42]} {[%emt
00:03:25]} Qb8 {[%clk 00:01:34]} {[%emt 00:02:05]} 36. Nde6 {[%clk 00:11:03]}
{[%emt 00:03:10]} Rc8 {[%clk 00:00:45]} {[%emt 00:01:20]} 37. Ra1 {[%clk
00:09:22]} {[%emt 00:02:10]} Bxe6 {[%clk 00:00:50]} {[%emt 00:00:25]} 38. Bxe6+
{[%clk 00:09:18]} {[%emt 00:00:35]} Rxe6 {[%clk 00:01:15]} {[%emt 00:00:05]} 39.
Nxe6 {[%clk 00:09:39]} {[%emt 00:00:09]} Ng4+ {[%clk 00:01:39]} {[%emt
00:00:06]} 40. Kg1 {[%clk 00:09:24]} {[%emt 00:00:44]} Ngxf2 {[%clk 00:01:13]}
{[%emt 00:00:56]} 41. Nf4 {[%clk 00:09:23]} {[%emt 00:00:31]} Qc7 {[%clk
00:00:35]} {[%emt 00:01:07]} 42. b4 {[%clk 00:08:09]} {[%emt 00:01:45]} Nxf4
{[%clk 00:00:32]} {[%emt 00:00:33]} 43. exf4 {[%clk 00:05:49]} {[%emt
00:02:50]} Nd3 {[%clk 00:00:36]} {[%emt 00:00:26]} 44. Qa2+ {[%clk 00:05:58]}
{[%emt 00:00:21]} Kf8 {[%clk 00:27:41]} {[%emt 00:03:25]} 45. Be3 {[%clk
00:35:12]} {[%emt 00:01:16]} Qc3 {[%clk 00:25:26]} {[%emt 00:02:45]} 46. b5
{[%clk 00:31:14]} {[%emt 00:04:28]} Qf6 {[%clk 00:13:23]} {[%emt 00:12:33]} 47.
Qa7 {[%clk 00:29:20]} {[%emt 00:02:24]} Qb2 {[%clk 00:06:38]} {[%emt 00:07:14]}
48. Qg7+ {[%clk 00:29:08]} {[%emt 00:00:43]} Qxg7 {[%clk 00:06:48]} {[%emt
00:00:21]} 49. hxg7+ {[%clk 00:29:29]} {[%emt 00:00:08]} Kxg7 {[%clk 00:07:14]}
{[%emt 00:00:03]} 50. b6 {[%clk 00:29:11]} {[%emt 00:00:48]} Nb4 {[%clk
00:07:25]} {[%emt 00:00:20]} 51. Ra7+ {[%clk 00:29:14]} {[%emt 00:00:27]} Kf6
{[%clk 00:07:14]} {[%emt 00:00:40]} 52. Rc7 {[%clk 00:28:34]} {[%emt 00:01:09]}
Rd8 {[%clk 00:07:14]} {[%emt 00:00:30]} 53. b7 {[%clk 00:27:59]} {[%emt
00:01:06]} Rd1+ {[%clk 00:06:43]} {[%emt 00:01:01]} 54. Kh2 {[%clk 00:28:20]}
{[%emt 00:00:09]} f2 {[%clk 00:06:54]} {[%emt 00:00:19]} 55. Bxf2 {[%clk
00:28:40]} {[%emt 00:00:10]} 1-0

[ePGN "0.1;DGT LiveChess/2.2.6"]